Cogmind - Beta 17 @@@ ROGUE MODE // 2026.07.15 @ 23:31:09 Player: TheSkyeDoctor Result: Destroyed by P-60 Hacker with Shock Rifle Performance ------------- Evolutions (3) 1500 Regions Visited (6) 1200 Robots Destroyed (41) 205 Value Destroyed (1267) 1267 Prototype IDs (24) 480 Alien Tech Used (0) 0 Bonus (7186) 7186 TOTAL SCORE: 11838 Bonus ------- Follower Combat Kills 186 Prayed to X0-1V1 5000 Major X0-1V1 Interference 1800 Entered Garrisons 200 Cogmind --------- Core Integrity 0/555 Matter 862/900 Energy 100/100 System Corruption 7% Temperature Cool (0) Movement Flying (385) Ox5 Location -7/Factory Parts ------- > --- POWER (1) -------- (None) > --- PROPULSION (4) --- Improved VTOL Module (fused) > --- UTILITY (5) ------ Medium Storage Unit Launcher Loader (fused) Self-contained Transmogrifier > --- WEAPON (3) ------- Shotgun Katana (fused) > --- INVENTORY (10) --- Seismic Detector Hardened Light Armor Plating Makeshift Hacking Suite Peak State ------------ > --- POWER ------------ Cooled Ion Engine > --- PROPULSION ------- VSS Leg Cesium-ion Thruster Surge Thruster Improved VTOL Module > --- UTILITY ---------- Enhanced Optical Array Hardened Heavy Armor Plating Self-contained Transmogrifier X0-1V1's Piety Tracker > --- WEAPON ----------- Plasma Cannon Cooled Plasma Cannon Powered Hammer > --- INVENTORY -------- Improved Signal Interpreter Seismic Detector Hardened Light Armor Plating Makeshift Hacking Suite Proton Missile Launcher [Rating: 66] Favorites ----------- Power Cooled Ion Engine Engine Cooled Ion Engine Power Core Nuclear Core Reactor Fusion Reactor Propulsion Light Treads Treads Light Treads Leg VSS Leg Wheel Compact Wheel Flight Unit Cooled VTOL Module Utility X0-1V1's Piety Tracker Device X0-1V1's Piety Tracker Storage Medium Storage Unit Processor Core Analyzer Protection Hardened Heavy Armor Plating Weapon Assault Rifle Energy Gun Gatling Laser Energy Cannon Plasma Cannon Ballistic Gun Assault Rifle Ballistic Cannon Gauss Cannon Launcher Proton Missile Launcher Impact Weapon Powered Hammer Slashing Weapon Ripteeth Build | -11 -10 -10 -8 -7 -7 -7 ------- Run | Yrd Mat Sub Mat Fac Gar Fac Slots Evolved 6 | . . . 4 2 . . Power . | . . . . . . . Propulsion 3 | . . . 2 1 . . Utility 2 | . . . 1 1 . . Weapon 1 | . . . 1 . . . Parts Attached 48 | 8 2 5 13 5 11 4 Power 7 | 2 . . 4 . 1 . Engine 7 | 2 . . 4 . 1 . Core . | . . . . . . . Reactor . | . . . . . . . Propulsion 12 | 2 . 2 3 1 4 . Treads 3 | 2 . 1 . . . . Leg . | . . . . . . . Wheel 4 | . . 1 3 . . . Hover . | . . . . . . . Flight 5 | . . . . 1 4 . Utility 16 | 2 2 1 2 2 5 2 Device 9 | 1 1 1 1 . 4 1 Storage 3 | 1 1 . . . . 1 Processor 4 | . . . 1 2 1 . Hackware . | . . . . . . . Protection . | . . . . . . . Artifact . | . . . . . . . Weapon 13 | 2 . 2 4 2 1 2 Energy Gun 4 | . . . 3 . . 1 Energy Cannon 1 | . . . . 1 . . Ballistic Gun 5 | 2 . 1 1 . . 1 Ballistic Cannon . | . . . . . . . Launcher 1 | . . . . . 1 . Special Weapon . | . . . . . . . Impact Weapon 2 | . . 1 . 1 . . Slashing Weapon . | . . . . . . . Piercing Weapon . | . . . . . . . Special Melee Weapon . | . . . . . . . Unidentified Prototypes 5 | . 1 1 2 1 . . Parts Lost 26 | . . 7 4 . 13 2 Power 3 | . . 2 . . 1 . Propulsion 8 | . . 3 1 . 4 . Utility 8 | . . . 1 . 5 2 Weapon 7 | . . 2 2 . 3 . Highest Loss Streak 8 | . . 3 1 . 8 1 To Critical Strikes . | . . . . . . . Average Backups 4 | 1 3 7 4 4 4 3 Power . | . 1 . . . . . Propulsion . | . 1 1 . . . . Utility 3 | . 1 4 4 4 3 3 Weapon . | . . 1 . . . . Tool/Special . | . . . . . . . Unused Backups 4 | . . . 1 1 . 2 Power 1 | . . . 1 . . . Propulsion . | . . . . . . . Utility 3 | . . . . 1 . 2 Weapon . | . . . . . . . Tool/Special . | . . . . . . . Average Slot Usage (%) 75 | . 100 92 57 90 69 49 Engine 6 | . 14 11 5 7 2 . Treads 5 | . 28 19 . . . . Wheel 4 | . . . 4 21 . . Flight 4 | . . . . 1 16 7 Device 21 | . 14 22 24 18 19 27 Storage 5 | . 14 14 2 . . 5 Processor 4 | . . . 1 16 2 . Protection 1 | . . . . 1 4 . Energy Gun 3 | . . . 9 4 . 6 Energy Cannon 3 | . . . . 9 6 . Ballistic Gun 5 | . 28 15 1 . . . Impact Weapon 4 | . . 6 6 6 4 . Peak Build Rating 66 | 7 19 31 53 62 66 43 Average Rating 40 | 5 7 25 44 57 52 39 On Entrance 28 | . 7 19 27 53 61 35 Avg Prop Armor Cover (%) 2 | . . . . 3 2 . Naked Turns . | . . . . . . . Heaviest Build 48 | 15 20 21 33 47 48 30 Greatest Support 40 | 40 40 40 36 40 21 5 Greatest Overweight (x) 10 | 1 . 4 10 2 9 7 Average Overweight (x) 1 | . . . 3 . 2 4 Largest Inventory Capacity 10 | 8 10 10 10 5 5 10 Average Capacity 7 | 7 9 10 6 5 5 9 Most Carried 10 | 3 4 10 5 5 5 3 Average Carried 4 | 1 3 7 4 4 4 3 Final Capacity 10 | 8 10 10 5 5 5 10 Final Carried 6 | 3 4 6 4 5 3 3 Transmogrified Parts 31 | . . 3 3 8 10 7 Integrity Recovered 323 | . . 113 21 60 97 32 Class Distribution -------------------- 81% | Mutant 17% | Commander-Mutant Dominant Class ---------------- Mutant | -10/Materials Mutant | -10/Subcaves Mutant | -8/Materials Commander-Mutant | -7/Factory Mutant | -7/Garrison Mutant | -7/Factory Resources | -11 -10 -10 -8 -7 -7 -7 ----------- Run | Yrd Mat Sub Mat Fac Gar Fac Matter Collected 1464 | 304 . 179 664 212 105 . Remotely . | . . . . . . . Salvage Created 1569 | 107 . 208 493 304 457 . Parts 61 | 8 . 14 15 14 10 . Haulers Intercepted 4 | . . . 2 2 . . Recyclers Shooed . | . . . . . . . Parts Field Recycled . | . . . . . . . Retrieved Matter . | . . . . . . . Parts Self-Destructed 20 | . . 20 . . . . Prevented . | . . . . . . . Parts Restored . | . . . . . . . Kills | -11 -10 -10 -8 -7 -7 -7 ------- Run | Yrd Mat Sub Mat Fac Gar Fac Combat Hostiles Destroyed 28 | . . 6 7 3 12 . Melee 3 | . . 1 1 . 1 . Guns 8 | . . 4 3 1 . . Cannons 10 | . . . . 2 8 . Classes Destroyed 12 | 2 . 3 3 3 1 . Worker 3 | . . . 2 1 . . Builder 2 | . . . 1 1 . . Tunneler 2 | 2 . . . . . . Hauler 4 | . . . 2 2 . . Recycler 1 | 1 . . . . . . Operator 1 | . . . . 1 . . Swarmer 6 | . . 1 . . 5 . Grunt 14 | . . 4 6 . 4 . Sentry 4 | . . 1 1 1 1 . Specialist 2 | . . . . . 2 . Hunter 1 | . . . . 1 . . Programmer 1 | . . . . 1 . . Best Kill Streak 4 | 2 . 2 4 3 3 . Combat Bots Only 3 | . . 2 3 1 3 . Max Kills in Single Turn 1 | 1 . 1 1 1 1 . Gunslinging . | . . . . . . . Exploded . | . . . . . . . Melee 1 | . . 1 1 . 1 . Uniques/NPCs Destroyed . | . . . . . . . Combat | -11 -10 -10 -8 -7 -7 -7 -------- Run | Yrd Mat Sub Mat Fac Gar Fac Hostile Shots Fired 581 | . . 122 176 28 230 25 Missed 198 | . . 37 63 14 79 5 Hits 383 | . . 85 113 14 151 20 Melee 1 | . . . . . 1 . Projectile 382 | . . 85 113 14 150 20 AOE 1 | . . . 1 . . . Critical Strikes 3 | . . . 1 . 2 . Part Disruptions 1 | . . . . . . 1 Damage Taken 4968 | . . 1255 1182 144 2105 282 Core 1562 | . . 311 517 44 631 59 Absorbed by Shields 80 | . . . 80 . . . Ignored by Resistances 14 | . . . . . . 14 Core Remaining (%) 66 | 100 . 52 46 . . . Volleys Fired 99 | 4 . 21 14 11 44 5 Largest 2 | 2 . 2 2 2 2 1 Hottest 185 | 40 . 40 160 185 185 55 Shots Fired 139 | 8 . 26 27 22 51 5 Gun 71 | 8 . 26 27 5 . 5 Cannon 66 | . . . . 17 49 . Launcher 2 | . . . . . 2 . Special . | . . . . . . . Kinetic 41 | 8 . 26 1 . 6 . Thermal 91 | . . . 26 22 43 . Explosive . | . . . . . . . Electromagnetic 7 | . . . . . 2 5 Robot Hit Streak 14 | 2 . 5 5 8 14 4 Robot Miss Streak 6 | 1 . 1 6 3 3 2 Penetration Max . | . . . . . . . Secondary Targets . | . . . . . . . Shots Hit Robots 134 | 5 . 23 36 14 51 5 Core Hits 50 | 4 . 9 17 6 13 1 Critical Kills 3 | . . 1 . . 2 . Critical Parts Destroyed 4 | . . 1 3 . . . Critical Strikes 11 | . . 3 3 1 4 . Burn 1 | . . . . 1 . . Meltdown 1 | . . . . . 1 . Blast 1 | . . . . . 1 . Smash 8 | . . 3 3 . 2 . Melee Attacks 65 | . . 12 23 4 20 6 Impact 59 | . . 12 23 4 20 . Slashing 6 | . . . . . . 6 Piercing . | . . . . . . . Sneak Attacks 5 | . . . 2 3 . . Combat Hostiles . | . . . . . . . Follow-up Attacks . | . . . . . . . Damage Inflicted 4180 | 71 . 464 1083 672 1746 144 Guns 863 | 71 . 240 435 73 . 44 Cannons 1505 | . . . . 293 1212 . Explosions 116 | . . . . . 116 . Melee 1696 | . . 224 648 306 418 100 Ramming . | . . . . . . . Kinetic 461 | 71 . 240 12 . 138 . Thermal 1863 | . . . 423 366 1074 . Explosive . | . . . . . . . Electromagnetic 160 | . . . . . 116 44 Impact 1596 | . . 224 648 306 418 . Slashing 100 | . . . . . . 100 Piercing . | . . . . . . . Highest Corruption 20 | . . 20 . 1 1 6 Average Corruption 5 | . . 18 . 1 1 1 Corruption Purged . | . . . . . . . Corruption Blocked . | . . . . . . . Effects 35 | . . 23 . . 8 4 Message Errors 10 | . . 9 . . 1 . Matter Fused 5 | . . 3 . . 1 1 Heat Flow Errors 6 | . . 2 . . 2 2 Energy Discharges 3 | . . 1 . . 1 1 Parts Rejected 1 | . . 1 . . . . Parts Fused 1 | . . 1 . . . . Data Loss (minor) 6 | . . 4 . . 2 . Data Loss (major) 1 | . . . . . 1 . Alerts 1 | . . 1 . . . . Misdirections 1 | . . 1 . . . . Overload Shots 11 | . . . . 6 5 . Effects 1 | . . . . 1 . . Energy Bleed 1 | . . . . 1 . . Overflow Damage 538 | . . 28 171 266 73 . Projectiles 110 | . . . . 37 73 . Explosions . | . . . . . . . Melee 428 | . . 28 171 229 . . Knockbacks 3 | . . 1 1 . 1 . Impact 3 | . . 1 1 . 1 . Kinetic . | . . . . . . . Secondary . | . . . . . . . Self-Inflicted Damage 29 | . . . . . 29 . Shots 2 | . . . . . 2 . Rammed . | . . . . . . . Targets Rammed . | . . . . . . . Kicked . | . . . . . . . Crushed . | . . . . . . . Highest Temperature 557 | . . 190 557 225 469 97 Average Temperature 131 | . . 86 222 89 98 47 Received Heat Transfer 1485 | . . 519 312 24 594 36 Effects 5 | . . . 4 . 1 . Short Circuit 1 | . . . . . 1 . Damage (major) 4 | . . . 4 . . . Siege Activations . | . . . . . . . Martial Activations . | . . . . . . . Shielding Activations . | . . . . . . . Robots Disrupted . | . . . . . . . Combat Hostiles . | . . . . . . . Robots Corrupted 5 | . . 1 3 1 . . Combat Hostiles 4 | . . 1 3 . . . Parts Fried 4 | . . . 4 . . . Impact Corruptions 12 | . . 1 7 4 . . Robots Melted 3 | . . . . . 3 . Combat Hostiles 3 | . . . . . 3 . Parts Melted 7 | . . . . 2 5 . Heat Transferred 3553 | . . . 949 704 1900 . Parts Sabotaged . | . . . . . . . Parts Stolen . | . . . . . . . Parts Stripped . | . . . . . . . Power Chain Reactions . | . . . . . . . Alert | -11 -10 -10 -8 -7 -7 -7 ------- Run | Yrd Mat Sub Mat Fac Gar Fac Maximum Alert Level 1 | . . . . . 1 1 Low Security (%) 88 | 100 100 . 100 100 84 60 Level 1 11 | . . . . . 15 39 Level 2 . | . . . . . . . Level 3 . | . . . . . . . Level 4 . | . . . . . . . Level 5 . | . . . . . . . High Security . | . . . . . . . Max Security . | . . . . . . . Peak Influence 278 | 5 . . 58 43 224 278 Initial 102 | . . . . 7 10 102 Average 80 | 1 . . 16 13 156 174 Influence Increases 1268 | 15 . 120 190 167 555 221 Destroy 0b10 Robot/C 680 | . . 120 140 60 360 . Destroy 0b10 Robot/NC 65 | 15 . . 25 25 . . Destroy Leader 68 | . . . 24 34 10 . Allied During Kill 73 | . . . . 34 39 . Successful Hack 11 | . . . . 11 . . Destroy Structure 15 | . . . 1 3 11 . Lose Combat Pursuer 150 | . . . . . 135 15 Miscellaneous 206 | . . . . . . 206 Influence Decreases 1171 | 15 . 120 173 169 375 319 Entered New Map 108 | . . . . 10 5 93 Time Decay 613 | 15 . 90 143 159 . 206 Lost Part 210 | . . 30 30 . 130 20 Lost Ally 240 | . . . . . 240 . Squads Dispatched 5 | . . . 2 3 . . Investigation 1 | . . . 1 . . . Extermination 1 | . . . . 1 . . Reinforcement 2 | . . . . 2 . . Assault . | . . . . . . . Garrison 1 | . . . 1 . . . Intercept . | . . . . . . . Searches Triggered . | . . . . . . . Construction Impeded . | . . . . . . . Haulers Reinforced 2 | . . . . 2 . . Active Scanning Responses . | . . . . . . . Cargo Convoy Interrupts . | . . . . . . . Stealth | -11 -10 -10 -8 -7 -7 -7 --------- Run | Yrd Mat Sub Mat Fac Gar Fac Distress Signals 6 | . . . 5 . . 1 Communications Jammed . | . . . . . . . Distress Signals . | . . . . . . . Times Spotted 76 | . 3 18 12 7 30 6 Peak Tracking Total 9 | . 2 5 4 2 9 4 Tactical Retreats 6 | . . . . . 5 1 Traps | -11 -10 -10 -8 -7 -7 -7 ------- Run | Yrd Mat Sub Mat Fac Gar Fac Traps Triggered 10 | . . 1 2 1 6 . Indirectly . | . . . . . . . Trap Hack Attempts . | . . . . . . . Triggered . | . . . . . . . Disarmed . | . . . . . . . Reprogrammed . | . . . . . . . Reused . | . . . . . . . Traps Extracted . | . . . . . . . Installed . | . . . . . . . Triggered . | . . . . . . . Objects Rigged 7 | . . . . 7 . . Machines | -11 -10 -10 -8 -7 -7 -7 ---------- Run | Yrd Mat Sub Mat Fac Gar Fac Machines Disabled 1 | . . 1 . . . . Max in Single Turn 1 | . . 1 . . . . Machines Repaired . | . . . . . . . Machines Dismantled . | . . . . . . . Machines Sabotaged . | . . . . . . . Overloaded Fab Kills . | . . . . . . . Hacking | -11 -10 -10 -8 -7 -7 -7 --------- Run | Yrd Mat Sub Mat Fac Gar Fac Machines Accessed 5 | . . 1 . 4 . . Terminals 2 | . . . . 2 . . Fabricators 1 | . . . . 1 . . Repair Stations . | . . . . . . . Recycling Units . | . . . . . . . Scanalyzers . | . . . . . . . Garrison Access 1 | . . . . 1 . . Total Hacks 12 | . . 1 . 11 . . Successful 6 | . . 1 . 5 . . Failed 6 | . . . . 6 . . Catastrophic . | . . . . . . . Database Lockouts . | . . . . . . . Manual 4 | . 1 . . 3 . . Terminals 4 | . . . . 4 . . Fabricators 3 | . . . . 3 . . Repair Stations . | . . . . . . . Recycling Units . | . . . . . . . Scanalyzers . | . . . . . . . Garrison Access 4 | . . . . 4 . . Terminal Hacks 2 | . . 1 . 1 . . Part Schematic 1 | . . . . 1 . . Proto ID Catalog 1 | . . 1 . . . . Fabricator Hacks 1 | . . . . 1 . . Build 1 | . . . . 1 . . Repair Station Hacks . | . . . . . . . Recycling Unit Hacks . | . . . . . . . Scanalyzer . | . . . . . . . Garrison Access Hacks 1 | . . . . 1 . . Unlock Access 1 | . . . . 1 . . Unauthorized Hacks 2 | . . . . 2 . . Terminals 2 | . . . . 2 . . Detonate 2 | . . . . 2 . . Fabricators . | . . . . . . . Repair Stations . | . . . . . . . Recycling Units . | . . . . . . . Scanalyzers . | . . . . . . . Garrison Access . | . . . . . . . Data Cores Recovered 1 | . . . . 1 . . Used . | . . . . . . . Hacking Detections 3 | . . . . 3 . . Full Trace Events . | . . . . . . . Feedback Events . | . . . . . . . Feedback Blocked . | . . . . . . . Robot Schematics Acquired . | . . . . . . . Robots Built . | . . . . . . . Authchips . | . . . . . . . Time . | . . . . . . . Total Robot Build Rating . | . . . . . . . Part Schematics Acquired 1 | . . . . 1 . . Parts Built 2 | . . . . 2 . . Authchips . | . . . . . . . Time 95 | . . . . 95 . . Total Part Build Rating 10 | . . . . 10 . . Part Studies Acquired . | . . . . . . . Parts Repaired . | . . . . . . . Time . | . . . . . . . Parts Recycled . | . . . . . . . Recycled Matter . | . . . . . . . Retrieved Matter . | . . . . . . . Retrieved Components . | . . . . . . . Parts Scanalyzed . | . . . . . . . Part Schematics Acquired . | . . . . . . . Parts Damaged . | . . . . . . . Bothacking | -11 -10 -10 -8 -7 -7 -7 ------------ Run | Yrd Mat Sub Mat Fac Gar Fac Used RIF Installer . | . . . . . . . Robots Hacked . | . . . . . . . Non-combat . | . . . . . . . Combat . | . . . . . . . Robot Hacks Applied . | . . . . . . . Relay Couplers Released . | . . . . . . . Fabnet Peak Effective % . | . . . . . . . Robots Rewired . | . . . . . . . Allies Hacked . | . . . . . . . Hacks Repelled . | . . . . . . . Allies | -11 -10 -10 -8 -7 -7 -7 -------- Run | Yrd Mat Sub Mat Fac Gar Fac Total Allies 12 | . . . . 4 8 . Largest Group 4 | . . . . 4 4 . Highest-Rated Group 128 | . . . . 128 125 . Highest-Rated Ally 32 | . . . . 32 32 . Total Orders . | . . . . . . . Ally Attacks 34 | . . . . 2 32 . Total Damage 741 | . . . . 64 677 . Kills 6 | . . . . . 6 . Allies Corrupted . | . . . . . . . Allies Melted . | . . . . . . . X0-1V1 Amusement Gains 140 | . 8 24 19 9 40 40 Good Acts 20 | . . 6 1 4 9 . Bad Acts 12 | . . 8 2 . . 2 Intel | -11 -10 -10 -8 -7 -7 -7 ------- Run | Yrd Mat Sub Mat Fac Gar Fac Active Infowar (turns) 1000 | 27 143 . . 611 219 . Optics 563 | . . . . 344 219 . Seismic 170 | 27 143 . . . . . Machine Analysis 513 | . . . . 513 . . Robot Analysis Total . | . . . . . . . Derelict Logs Recovered 1 | . . 1 . . . . Drone Launches . | . . . . . . . Drone Recoveries . | . . . . . . . Exploration | -11 -10 -10 -8 -7 -7 -7 ------------- Run | Yrd Mat Sub Mat Fac Gar Fac Turns Passed 3417 | 121 147 779 561 611 767 431 Spaces Moved 1758 | 65 90 425 209 539 302 128 Core 81 | 8 . 1 72 . . . Treads 498 | 57 90 351 . . . . Legs 33 | . . 33 . . . . Wheels 735 | . . 40 137 539 19 . Hover . | . . . . . . . Flight 411 | . . . . . 283 128 Fastest Speed 30 | 50 160 90 86 83 30 35 Average Speed 155 | 148 160 156 209 95 170 283 Slowest Speed 675 | 160 160 250 550 130 675 385 Overloaded Moves 33 | . . . . . 33 . Propulsion Burnouts . | . . . . . . . Robots Hopped . | . . . . . . . Potential Cave-ins . | . . . . . . . Cave-ins Triggered 1 | . . 1 . . . . Exploration Rate (%) 18 | 4 18 19 21 23 42 3 Regions Visited 6 Branch Regions 1 Pre-discovered Areas . | . . . . . . . Known Exits Taken 2 | . . 1 . 1 . . Unknown Exits Taken 3 | 1 1 . 1 . . . Scrap Searched 2 | . . 2 . . . . Spaces Dug 9 | . . 2 1 . 6 . Terrain Destroyed 13 | . . 2 1 4 6 . Melee 9 | . . 2 1 . 6 . Projectile 4 | . . . . 4 . . AOE . | . . . . . . . Terrain Rammed . | . . . . . . . Walls Destroyed . | . . . . . . . Machines Disabled . | . . . . . . . Actions | -11 -10 -10 -8 -7 -7 -7 --------- Run | Yrd Mat Sub Mat Fac Gar Fac Total 2183 | 78 93 488 272 607 465 180 Wait 102 | . . 15 8 32 10 37 Move 1753 | 64 89 424 208 539 301 128 Hop . | . . . . . . . Pick Up 15 | 2 1 7 2 3 . . Fast Attach 36 | 7 . 1 12 4 8 4 Attach 10 | . . 5 2 1 2 . Detach 4 | . . . . 1 3 . Swap 7 | 1 2 2 1 . 1 . Drop 9 | . 1 1 2 4 1 . Fire 99 | 4 . 21 14 11 44 5 Melee 65 | . . 12 23 4 20 6 Ram . | . . . . . . . Kick . | . . . . . . . Crush . | . . . . . . . Escape Stasis 83 | . . . . 8 75 . Rewire . | . . . . . . . Trap . | . . . . . . . Miscellaneous . | . . . . . . . Route ------- -11/Scrapyard -10/Materials -10/Subcaves (discovered 2 exits: *Mat x2) -8/Materials -7/Factory -7/Garrison (discovered 2 exits: *Fac x2) -7/Factory History --------- Turn | Location | Event 7 | -11/Scrapyard | Discovered new exit (range 13) 122 | -11/Scrapyard | Entered Materials 241 | -10/Materials | Discovered new exit (range 8) 262 | -10/Materials | Prayed at D.C.S.S. Altar Unit 269 | -10/Materials | Entered Subcaves 270 | -10/Subcaves | Approached by a straggling Scientist 305 | -10/Subcaves | Build established: Mutant 369 | -10/Subcaves | Identified exit to Materials 471 | -10/Subcaves | Heat dissipation permanently improved by X0-1V1 (+15; -75 max core) 568 | -10/Subcaves | Visited 4L-MR0's lab 586 | -10/Subcaves | Found Prototype Device 588 | -10/Subcaves | X0-1V1 mutated your Weapon slot to Utility slot 589 | -10/Subcaves | Identified Sfc. Transmogrifier 591 | -10/Subcaves | X0-1V1 activates XOMVISION 595 | -10/Subcaves | Found Power Bank 604 | -10/Subcaves | X0-1V1 revealed exit location to -8/Materials 616 | -10/Subcaves | System corruption reached 10% 642 | -10/Subcaves | X0-1V1 sent hostile G-34 Mercenary (x5) 667 | -10/Subcaves | Shifting Twisted Machinery released Sub. Laser 668 | -10/Subcaves | X0-1V1 sent you into danger 705 | -10/Subcaves | Core integrity fell below 50% 728 | -10/Subcaves | Core integrity fell below 20% 754 | -10/Subcaves | Lost 3 parts (1p2n) 766 | -10/Subcaves | Shifting Twisted Machinery released Battle Cannon 782 | -10/Subcaves | X0-1V1 rescued you from certain death 888 | -10/Subcaves | Crushed by falling debris 937 | -10/Subcaves | X0-1V1 mutated your Propulsion slot to Weapon slot 1016 | -10/Subcaves | X0-1V1 rescued you from certain death 1048 | -10/Subcaves | Entered Materials 1048 | -8/Materials | Evolved 4 slots: Propulsion x2, Utility x1, Weapon x1 1049 | -8/Materials | Attached Power Bank, gained temporary slots: Power x3 1197 | -8/Materials | Garrison activated, responded to threat 1206 | -8/Materials | X0-1V1 upgraded hostiles (x2) 1221 | -8/Materials | Core integrity fell below 50% 1239 | -8/Materials | Core integrity fell below 20% 1246 | -8/Materials | X0-1V1 rescued you from certain death 1498 | -8/Materials | Discovered new exit (range 15) 1609 | -8/Materials | Entered Factory 1609 | -7/Factory | Evolved 2 slots: Propulsion x1, Utility x1 1645 | -7/Factory | X0-1V1 sent you to a vault 1830 | -7/Factory | Fabricated Enh. Optical Array? 1935 | -7/Factory | Build established: Commander-Mutant 2073 | -7/Factory | X0-1V1 activates XOMVISION 2214 | -7/Factory | Identified exit to Garrison 2220 | -7/Factory | Entered Garrison 2220 | -7/Garrison | Accompanied by 4 allies 2246 | -7/Garrison | Triggered checkpoint 2266 | -7/Garrison | Melee accuracy permanently improved by X0-1V1 (+7%; -70 max core) 2473 | -7/Garrison | Identified exit to Factory 2473 | -7/Garrison | X0-1V1 revealed exit location to -7/Factory 2498 | -7/Garrison | Triggered checkpoint 2555 | -7/Garrison | Build established: Mutant 2572 | -7/Garrison | X0-1V1 activates XOMVISION 2671 | -7/Garrison | Rescued a captive Derelict 2671 | -7/Garrison | Rescued a captive Derelict 2692 | -7/Garrison | Core integrity fell below 50% 2708 | -7/Garrison | Core integrity fell below 20% 2714 | -7/Garrison | X0-1V1 sent allied C-17 Slicer (x3) 2734 | -7/Garrison | Lost 8 parts (1p3n3u1w) 2812 | -7/Garrison | Core integrity restored by X0-1V1 (+122) 2930 | -7/Garrison | Triggered checkpoint 2930 | -7/Garrison | Triggered checkpoint 2957 | -7/Garrison | X0-1V1 sent allied G-47 Trooper (x3) 2979 | -7/Garrison | Discovered exit to Factory (range 15) 2985 | -7/Garrison | Lost 3 parts (1u2w) 2987 | -7/Garrison | Entered Factory 2995 | -7/Factory | Lost 5 allies 3055 | -7/Factory | X0-1V1 added 0b10 threat records associated with you (considerable) 3418 | -7/Factory | Destroyed by P-60 Hacker with Shock Rifle Last Messages --------------- 03179_ Acquired X0-1V1's Piety Tracker. 03195_ System corrupted: Heat flow error (+145). 03245_ Sfc. Transmogrifier converts Surge Thruster into Imp. VTOL Module. 03301_ Sfc. Transmogrifier converts Imp. Thermal Defense Suite, Shock Absorption System into Launcher Loader. 03352_ System corrupted: Matter fused (-8). 03359_ Acquired Shotgun. 03360_ X0-1V1: "A box. Just for you." 03362_ K-01 Serf cleans the Nuclear Reactor. 03391_ Sfc. Transmogrifier converts Lightning Gun into Katana. 03391_ K-01 Serf cleans the Nuclear Reactor. 03409_ X0-1V1's Piety Tracker destroyed. 03409_ K-01 Serf cleans the Nuclear Reactor. 03418_ X0-1V1 chuckles heartily! Map ----- +----------------------------------------------------+ | ???????????????????????????????????????? | | ???????????????????????????????????????? | | ???????????????????????????????????????? | | ???????????????????????????????????????? | | ???????????????????????????????????????? | | ???????????????????????????????????????? | | ???????????????????????????????????????? | | ???????????????????????????????????????? | | ???????????????????????????????????????? | | ???????????????????????????????????????? | | ???????????????????????????????????????? | | ???????????????????????????????????????? | | ???????????????????????????????????????? | | ???????????????????????????????????????? | | ???????????????????????????????????????? | | ???????????????????????????????????????? | | ???????????????????????????????????????? | | ???????????????????????????????????????? | | ???????????????????????????????????????? | | ???????????????????????????????????????? | | ???##############??????????????????????? | | ???# #??????????????????????? | | ???# #########+#####????????? | | ???# # ???????? | | ???? # ???????? | | ??????""" """ @# ??????? | | ????? """ """ wpp ??????? | | ???# """ """ r# ??????? | | ???# ka # #######??????????? | | ???# """k""" # #????????????????? | | ????? """k""" # #????????????????? | | ???# """ """ # #????????????????? | | ???# k k # #????????????????? | | ????/############ #????????????????? | | ????????????????# #????????????????? | | ????????????????# #####????????????? | | ????????????????# ##T #############+ | | ????????????????# | | ????????????????# | | ????????????????# | | ????????????????# | | ????????????????# | | ????????????????# ################## | | ??????????????### #????????????????? | | ??????????????# #????????????????? | | ??????????????# #????????????????? | | ??????????????# #????????????????? | | ??????????????# #????????????????? | | ??????????????# #????????????????? | | ????????????######+#######?????????????? | +----------------------------------------------------+ Best States ------------- Heat Dissipation 82 Energy Generation 29 Energy Capacity 1900 Matter Stores 1000 Matter Capacity 1000 Sight Range 25 Terrain Scan Density 10 Armor Coverage 600 Resistance: TH 43 Evasion (%) 63 Core Analysis 6 Recoil Reduction 2 Item Schematics ----------------- Hvy. Treads | -7/Factory | Hacked Robot Schematics ------------------ None Fabricated ------------ Enh. Optical Array | x2 | -7/Factory | Preloaded Repaired ---------- Nothing Studied --------- None Alien Tech Used ----------------- None Achievements -------------- None Challenges ------------ None Game ------ Seed SpikedMolecularFlakker Manual? 0 Play Time 00:28:08 Cumulative 125.6 hours Start 2026.07.15 @ 21:52:08 End 2026.07.15 @ 23:31:09 Sessions 1 Manual Loads 0 Difficulty Rogue Special Mode None Game No. 265 Rogue 265 Adventurer 0 Explorer 0 Win Type - Total 0 Types 0/0/0/0/0/0/0/0/0/0 Lore% 53 Gallery% 53 Achievement% 42 Wizard Run 0 Options --------- Layout 1 ASCII 0 Keyboard 1 Movement Arrows Keybinds 0 Fullscreen 2 Font 24/Smallcaps Map View 50x35 Zoom Use 0% Tactical HUD 1 Map Filters NONE Filters NONE Steam 1 RUN: bc579333-082f-4a42-abd3-c8914191f514